Cogmind - Beta 16 @@@ ROGUE MODE // 2025.12.24 @ 07:41:14 Player: Gatamar Result: Destroyed by Autobeam Turret with Autobeam Performance ------------- Evolutions (0) 0 Regions Visited (3) 600 Robots Destroyed (20) 100 Value Destroyed (464) 464 Prototype IDs (0) 0 Alien Tech Used (0) 0 Bonus (0) 0 TOTAL SCORE: 1164 Bonus ------- None Cogmind --------- Core Integrity 0/250 Matter 267/300 Energy 250/250 System Corruption 0% Temperature Cool (22) Movement Treading (240) Ox1 Location -10/Subcaves Parts ------- > --- POWER (1) -------- Ion Engine > --- PROPULSION (2) --- Light Treads Light Treads > --- UTILITY (2) ------ High-capacity Storage Unit > --- WEAPON (2) ------- Particle Gun Light Assault Rifle > --- INVENTORY (20) --- Ion Engine Light Ion Engine Aluminum Leg Aluminum Leg Heat Sink Small Storage Unit Machine Analyzer Scrap Shield Recalibrator Medium Laser Light Assault Rifle Shotgun Mining Laser Welding Torch Scrap Shield Fragment (49) Peak State ------------ > --- POWER ------------ Light Nuclear Core > --- PROPULSION ------- Light Treads Light Treads > --- UTILITY ---------- High-capacity Storage Unit Light Armor Plating > --- WEAPON ----------- Light Assault Rifle Shotgun > --- INVENTORY -------- Ion Engine Ion Engine Light Ion Engine Light Treads Aluminum Leg Aluminum Leg Heat Sink Small Storage Unit Machine Analyzer Recalibrator Medium Laser Particle Gun Light Assault Rifle Light Assault Rifle Shotgun Mining Laser Welding Torch [Rating: 12] Favorites ----------- Power Ion Engine Engine Ion Engine Power Core Light Nuclear Core Propulsion Light Treads Treads Light Treads Utility High-capacity Storage Unit Device Heat Sink Storage High-capacity Storage Unit Protection Light Armor Plating Weapon Light Assault Rifle Energy Gun Medium Laser Ballistic Gun Light Assault Rifle Special Weapon Mining Laser Build | -11 -10 -10 -10 ------- Run | Yrd Mat Min Sub Slots Evolved . | . . . . Power . | . . . . Propulsion . | . . . . Utility . | . . . . Weapon . | . . . . Parts Attached 20 | 7 12 . 1 Power 4 | 2 2 . . Engine 3 | 2 1 . . Core 1 | . 1 . . Reactor . | . . . . Propulsion 3 | 2 1 . . Treads 3 | 2 1 . . Leg . | . . . . Wheel . | . . . . Hover . | . . . . Flight . | . . . . Utility 4 | 1 3 . . Device 1 | . 1 . . Storage 2 | 1 1 . . Processor . | . . . . Hackware . | . . . . Protection 1 | . 1 . . Artifact . | . . . . Weapon 9 | 2 6 . 1 Energy Gun 2 | 1 1 . . Energy Cannon . | . . . . Ballistic Gun 5 | 1 3 . 1 Ballistic Cannon . | . . . . Launcher . | . . . . Special Weapon 2 | . 2 . . Impact Weapon . | . . . . Slashing Weapon . | . . . . Piercing Weapon . | . . . . Special Melee Weapon . | . . . . Unidentified Prototypes . | . . . . Parts Lost 5 | . 1 1 3 Power 1 | . . . 1 Propulsion 1 | . . 1 . Utility . | . . . . Weapon 3 | . 1 . 2 Highest Loss Streak 2 | . 1 1 2 To Critical Strikes . | . . . . Average Backups 10 | 1 9 16 16 Power 1 | . 1 3 2 Propulsion 2 | . 2 2 2 Utility 2 | . 2 4 4 Weapon 3 | . 2 6 5 Tool/Special . | . . . . Unused Backups 6 | . . . 6 Power . | . . . . Propulsion 2 | . . . 2 Utility 3 | . . . 3 Weapon 1 | . . . 1 Tool/Special . | . . . . Average Slot Usage (%) 95 | . 97 97 80 Engine 10 | . 13 . 1 Core 2 | . . 14 8 Treads 27 | . 28 26 28 Device 4 | . 6 . . Storage 14 | . 14 14 14 Protection 6 | . 5 14 . Ballistic Gun 25 | . 24 28 25 Special Weapon 1 | . 2 . . Peak Build Rating 12 | 6 12 12 12 Average Rating 8 | 4 8 11 9 On Entrance 7 | . 6 12 12 Avg Prop Armor Cover (%) . | . . . . Naked Turns . | . . . . Heaviest Build 52 | 14 52 52 52 Greatest Support 40 | 40 40 40 40 Greatest Overweight (x) 2 | . 1 2 1 Average Overweight (x) . | . . 1 . Largest Inventory Capacity 20 | 8 20 20 20 Average Capacity 15 | 7 14 20 20 Most Carried 19 | 4 17 17 19 Average Carried 10 | 1 9 16 17 Final Capacity 20 | 8 20 20 20 Final Carried 17 | 4 17 16 16 Class Distribution -------------------- 100% | Mutant Dominant Class ---------------- Mutant | -10/Materials Mutant | -10/Mines Mutant | -10/Subcaves Resources | -11 -10 -10 -10 ----------- Run | Yrd Mat Min Sub Matter Collected 674 | 177 379 35 83 Remotely . | . . . . Salvage Created 577 | . 442 61 74 Parts 41 | . 23 12 6 Haulers Intercepted . | . . . . Recyclers Shooed 2 | . 1 1 . Parts Field Recycled . | . . . . Retrieved Matter . | . . . . Parts Self-Destructed 7 | . . . 7 Prevented . | . . . . Parts Restored . | . . . . Kills | -11 -10 -10 -10 ------- Run | Yrd Mat Min Sub Combat Hostiles Destroyed 19 | . 11 5 3 Guns 19 | . 11 5 3 Classes Destroyed 4 | . 3 . 1 Mechanic 1 | . 1 . . Swarmer 10 | . 3 5 2 Grunt 8 | . 8 . . Subdweller 1 | . . . 1 Best Kill Streak 5 | . 3 5 1 Combat Bots Only 5 | . 3 5 1 Max Kills in Single Turn 1 | . 1 1 1 Gunslinging . | . . . . Exploded . | . . . . Melee . | . . . . Uniques/NPCs Destroyed . | . . . . Combat | -11 -10 -10 -10 -------- Run | Yrd Mat Min Sub Hostile Shots Fired 202 | . 81 47 74 Missed 75 | . 31 19 25 Hits 127 | . 50 28 49 Projectile 127 | . 50 28 49 Critical Strikes 2 | . . . 2 Damage Taken 1229 | . 572 226 431 Core 250 | . 60 24 166 Absorbed by Shields . | . . . . Regen/Repaired (Parts) 38 | . 38 . . Core Remaining (%) 100 | 100 . . . Volleys Fired 88 | . 58 16 14 Largest 2 | . 2 2 2 Hottest 100 | . 100 43 85 Shots Fired 157 | . 105 32 20 Gun 149 | . 97 32 20 Cannon . | . . . . Launcher . | . . . . Special 8 | . 8 . . Kinetic 146 | . 97 32 17 Thermal 11 | . 8 . 3 Explosive . | . . . . Electromagnetic . | . . . . Robot Hit Streak 8 | . 8 3 6 Robot Miss Streak 5 | . 4 5 3 Penetration Max . | . . . . Secondary Targets 2 | . 1 . 1 Max Gunslinging Chain 1 | . 1 . 1 Shots Hit Robots 88 | . 61 15 12 Core Hits 39 | . 27 7 5 Critical Kills 1 | . 1 . . Critical Parts Destroyed . | . . . . Critical Strikes 1 | . 1 . . Destroy 1 | . 1 . . Melee Attacks . | . . . . Impact . | . . . . Slashing . | . . . . Piercing . | . . . . Sneak Attacks . | . . . . Combat Hostiles . | . . . . Follow-up Attacks . | . . . . Damage Inflicted 929 | . 633 172 124 Guns 928 | . 632 172 124 Cannons . | . . . . Explosions . | . . . . Melee . | . . . . Ramming 1 | . 1 . . Kinetic 914 | . 632 172 110 Thermal 14 | . . . 14 Explosive . | . . . . Electromagnetic . | . . . . Impact . | . . . . Slashing . | . . . . Piercing . | . . . . Highest Corruption . | . . . . Average Corruption . | . . . . Corruption Purged . | . . . . Corruption Blocked . | . . . . Overload Shots . | . . . . Overflow Damage . | . . . . Projectiles . | . . . . Explosions . | . . . . Melee . | . . . . Knockbacks . | . . . . Impact . | . . . . Kinetic . | . . . . Secondary . | . . . . Self-Inflicted Damage . | . . . . Shots . | . . . . Rammed 1 | . 1 . . Targets Rammed 1 | . 1 . . Kicked . | . . . . Crushed . | . . . . Highest Temperature 40 | . 40 24 16 Average Temperature 14 | . 18 11 7 Received Heat Transfer 423 | . 261 . 162 Siege Activations . | . . . . Martial Activations . | . . . . Shielding Activations . | . . . . Robots Disrupted . | . . . . Combat Hostiles . | . . . . Robots Corrupted . | . . . . Combat Hostiles . | . . . . Parts Fried . | . . . . Impact Corruptions . | . . . . Robots Melted . | . . . . Combat Hostiles . | . . . . Parts Melted . | . . . . Heat Transferred 37 | . . . 37 Parts Sabotaged . | . . . . Parts Stolen . | . . . . Parts Stripped . | . . . . Power Chain Reactions . | . . . . Alert | -11 -10 -10 -10 ------- Run | Yrd Mat Min Sub Maximum Alert Level . | . . . . Low Security (%) 100 | 100 100 100 . Level 1 . | . . . . Level 2 . | . . . . Level 3 . | . . . . Level 4 . | . . . . Level 5 . | . . . . High Security . | . . . . Max Security . | . . . . Peak Influence 94 | . 65 94 . Initial 14 | . . 14 . Average 15 | . 11 59 . Influence Increases 470 | . 295 120 55 Destroy 0b10 Robot/C 360 | . 220 100 40 Destroy 0b10 Robot/NC 5 | . 5 . . Destroy Leader 60 | . 40 20 . Successful Hack 14 | . 14 . . Destroy Structure 1 | . 1 . . Lose Combat Pursuer 30 | . 15 . 15 Influence Decreases 445 | . 257 124 64 Entered New Map 42 | . . 24 18 Time Decay 373 | . 247 90 36 Lost Part 30 | . 10 10 10 Squads Dispatched . | . . . . Investigation . | . . . . Extermination . | . . . . Reinforcement . | . . . . Assault . | . . . . Garrison . | . . . . Intercept . | . . . . Searches Triggered . | . . . . Construction Impeded . | . . . . Haulers Reinforced . | . . . . Active Scanning Responses . | . . . . Cargo Convoy Interrupts . | . . . . Stealth | -11 -10 -10 -10 --------- Run | Yrd Mat Min Sub Distress Signals . | . . . . Communications Jammed . | . . . . Distress Signals . | . . . . Times Spotted 41 | . 20 6 15 Peak Tracking Total 9 | . 3 3 9 Tactical Retreats 2 | . 1 . 1 Traps | -11 -10 -10 -10 ------- Run | Yrd Mat Min Sub Traps Triggered . | . . . . Indirectly . | . . . . Trap Hack Attempts . | . . . . Triggered . | . . . . Disarmed . | . . . . Reprogrammed . | . . . . Reused . | . . . . Traps Extracted . | . . . . Installed . | . . . . Triggered . | . . . . Machines | -11 -10 -10 -10 ---------- Run | Yrd Mat Min Sub Machines Disabled . | . . . . Max in Single Turn . | . . . . Machines Repaired . | . . . . Machines Dismantled . | . . . . Machines Sabotaged . | . . . . Overloaded Fab Kills . | . . . . Hacking | -11 -10 -10 -10 --------- Run | Yrd Mat Min Sub Machines Accessed 6 | . 6 . . Terminals 4 | . 4 . . Fabricators . | . . . . Repair Stations 1 | . 1 . . Recycling Units 1 | . 1 . . Scanalyzers . | . . . . Garrison Access . | . . . . Total Hacks 14 | . 14 . . Successful 7 | . 7 . . Failed 7 | . 7 . . Catastrophic . | . . . . Database Lockouts . | . . . . Manual . | . . . . Terminals 10 | . 10 . . Fabricators . | . . . . Repair Stations 2 | . 2 . . Recycling Units 2 | . 2 . . Scanalyzers . | . . . . Garrison Access . | . . . . Terminal Hacks 4 | . 4 . . Alert Level 1 | . 1 . . Locate Traps 1 | . 1 . . Patrol Status 1 | . 1 . . Hauler Manifests 1 | . 1 . . Fabricator Hacks . | . . . . Repair Station Hacks 2 | . 2 . . Scan Component 1 | . 1 . . Repair 1 | . 1 . . Recycling Unit Hacks 1 | . 1 . . Retrieve Components 1 | . 1 . . Scanalyzer . | . . . . Garrison Access Hacks . | . . . . Unauthorized Hacks . | . . . . Terminals . | . . . . Fabricators . | . . . . Repair Stations . | . . . . Recycling Units . | . . . . Scanalyzers . | . . . . Garrison Access . | . . . . Data Cores Recovered . | . . . . Used . | . . . . Hacking Detections 5 | . 5 . . Full Trace Events . | . . . . Feedback Events . | . . . . Feedback Blocked . | . . . . Robot Schematics Acquired . | . . . . Robots Built . | . . . . Authchips . | . . . . Time . | . . . . Total Robot Build Rating . | . . . . Part Schematics Acquired . | . . . . Parts Built . | . . . . Authchips . | . . . . Time . | . . . . Total Part Build Rating . | . . . . Part Studies Acquired . | . . . . Parts Repaired 1 | . 1 . . Time 26 | . 26 . . Parts Recycled . | . . . . Recycled Matter . | . . . . Retrieved Matter . | . . . . Retrieved Components 9 | . 9 . . Parts Scanalyzed . | . . . . Part Schematics Acquired . | . . . . Parts Damaged . | . . . . Bothacking | -11 -10 -10 -10 ------------ Run | Yrd Mat Min Sub Used RIF Installer . | . . . . Robots Hacked . | . . . . Non-combat . | . . . . Combat . | . . . . Robot Hacks Applied . | . . . . Relay Couplers Released . | . . . . Fabnet Peak Effective % . | . . . . Robots Rewired . | . . . . Allies Hacked . | . . . . Hacks Repelled . | . . . . Allies | -11 -10 -10 -10 -------- Run | Yrd Mat Min Sub Total Allies . | . . . . Largest Group . | . . . . Highest-Rated Group . | . . . . Highest-Rated Ally . | . . . . Total Orders . | . . . . Ally Attacks . | . . . . Total Damage . | . . . . Kills . | . . . . Allies Corrupted . | . . . . Allies Melted . | . . . . Intel | -11 -10 -10 -10 ------- Run | Yrd Mat Min Sub Active Infowar (turns) . | . . . . Robot Analysis Total . | . . . . Derelict Logs Recovered 1 | . . . 1 Drone Launches . | . . . . Drone Recoveries . | . . . . Exploration | -11 -10 -10 -10 ------------- Run | Yrd Mat Min Sub Turns Passed 2370 | 75 1822 198 275 Spaces Moved 1010 | 42 804 64 100 Core 4 | 4 . . . Treads 1006 | 38 804 64 100 Legs . | . . . . Wheels . | . . . . Hover . | . . . . Flight . | . . . . Fastest Speed 50 | 50 160 240 160 Average Speed 200 | 149 195 241 237 Slowest Speed 320 | 160 240 320 240 Overloaded Moves . | . . . . Propulsion Burnouts . | . . . . Robots Hopped . | . . . . Potential Cave-ins . | . . . . Cave-ins Triggered . | . . . . Exploration Rate (%) 30 | 4 88 19 10 Regions Visited 3 Branch Regions 2 Pre-discovered Areas . | . . . . Known Exits Taken . | . . . . Unknown Exits Taken 3 | 1 1 1 . Scrap Searched . | . . . . Spaces Dug 1 | . 1 . . Terrain Destroyed 1 | . 1 . . Melee . | . . . . Projectile 1 | . 1 . . AOE . | . . . . Terrain Rammed . | . . . . Walls Destroyed . | . . . . Machines Disabled . | . . . . Actions | -11 -10 -10 -10 --------- Run | Yrd Mat Min Sub Total 1207 | 51 954 80 122 Wait 69 | . 69 . . Move 1007 | 41 803 63 100 Hop . | . . . . Pick Up 15 | 3 9 . 3 Fast Attach 9 | 6 3 . . Attach 4 | . . 1 3 Detach . | . . . . Swap 12 | 1 11 . . Drop 2 | . . . 2 Fire 88 | . 58 16 14 Melee . | . . . . Ram . | . . . . Kick . | . . . . Crush 1 | . 1 . . Escape Stasis . | . . . . Rewire . | . . . . Trap . | . . . . Miscellaneous . | . . . . Route ------- -11/Scrapyard -10/Materials (discovered 4 exits: [*Mat x3] / [*Min]) -10/Mines -10/Subcaves (discovered 1 exit: [*Rec]) History --------- Turn | Location | Event 10 | -11/Scrapyard | Discovered new exit (range 16) 76 | -11/Scrapyard | Entered Materials 326 | -10/Materials | Build established: Mutant 403 | -10/Materials | Discovered new exit (range 15) 653 | -10/Materials | Discovered new exit (range 16) 752 | -10/Materials | Repaired Ion Engine 938 | -10/Materials | Discovered new exit (range 12) 1360 | -10/Materials | Discovered new exit (range 8) 1898 | -10/Materials | Entered Mines 1956 | -10/Mines | Met a Derelict bent on vengeance 2072 | -10/Mines | Discovered new exit (range 10) 2096 | -10/Mines | Entered Subcaves 2097 | -10/Subcaves | Approached by a straggling Scientist 2237 | -10/Subcaves | Learned Materials interactive machine intel 2250 | -10/Subcaves | Core integrity fell below 50% 2333 | -10/Subcaves | Ambushed by swarm of Subdwellers 2338 | -10/Subcaves | Core integrity fell below 20% 2365 | -10/Subcaves | Discovered new exit (range 14) 2371 | -10/Subcaves | Destroyed by Autobeam Turret with Autobeam Last Messages --------------- 02346_ DO-87N(R) affixes Scrap Shield Fragment to Scrap Shield. 02347_ HV Slug penetrates 05-NGX(R). 02347_ 05-NGX(R) destroyed. 02347_ HV Slug penetrates 63-KB9(R). 02347_ E7-6X2(R) suffers critical hit (Destroy). 02347_ 63-KB9(R) destroyed. 02348_ 48-BFY(h) suffers critical hit (Destroy). 02348_ 48-BFY(h) destroyed. 02349_ F6-HVZ(R) affixes Scrap Shield Fragment to Scrap Shield. 02350_ S-10 Pest destroyed. 02350_ Switching to secondary target: E7-6X2(R). 02362_ CH-GJ4(R) destroyed. 02365_ EXIT=FOUND 02366_ Lgt. Ion Engine fries itself beyond repair. 02366_ F6-HVZ(R) destroyed. 02366_ VS-CAI(g) destroyed. 02368_ CX-X8V(g) destroyed. Map ----- +----------------------------------------------------+ | ?????????????????????????????????????????????????? | | ?????????????????????????????????????????????????? | | ?????????????????????????????????????????????????? | | ?????????????????????????????????????????????????? | | ?????????????????????????????????????????????????? | | ?????????????????????????????????????????????????? | | ?????????????????????????????????????????????????? | | ?????????????????????????????????????????????????? | | ?????????????????????????????????????????????????? | | ?????????????????????????????????????????????????? | | ????????????????????????? ?????????????????????? | | ???????????????????????? ????????????????????? | | ???????????????????????? ????????????????????? | | ???????????????????????? ?????????????????????? | | ?????????????????????? ?????????????????????? | | ??????????????????????? ?????????????????????? | | ???????????????????????? ?????????????????????? | | ????????????????????????# ????##???????????????? | | ????????????????????????# #??## ##??????????????? | | ??????????????####??????# #### #??????????????? | | ?????????????#"" ?????# #???????????????? | | ?????????????#" % ??### ##??????????????? | | ?????????????# % ;## #???????###????? | | ????????????##" % % #??????? ???? | | ????????????#< % % ##????? ???? | | ?????????????#""t % @ % ###### #????? | | ?????????????#" ## % [# #=%&&""#????? | | ?????????????????????# !!&g%&&%! #????? | | ?????????????????????# %=%==!&[&##?????? | | ?????????????????????## ## !=!%##&%/=#?????? | | ??????????????????????## ### !=##??? #???? | | ???????????????????????# #?# ==#?????? #???? | | ???????????????????????## #?# ###?????????? | | ????????????????????????#####?## ##????????? | | ???????????????????????????????## ##???????? | | ????????????????????????????????# # # #?????? | | ???????????????????????????????## ### # #?????? | | ??????????????????????????????## "## #####?????? | | ??????????????????????????? "## " ###??????? | | ?????????????????????????? """""*= ##?????? | | ?????????????????????????? """"&% #?????? | | ?????????????????????? #[! = #??###? | | ?????????????????????# ##### |% ### #? | | ?????????????????????## ## ## #? | | ??????????????????????#### # #??? | | ?????????????????????????#### # #??? | | ????????????????????????????# # # #???? | | ??????????????????????????????#?### # # #???? | | ??????????????????????????????????##### ####???? | | ??????????????????????????????????????# #??????? | +----------------------------------------------------+ Best States ------------- Heat Dissipation 35 Energy Generation 14 Energy Capacity 250 Matter Stores 300 Matter Capacity 300 Sight Range 16 Terrain Scan Density 10 Armor Coverage 150 Evasion (%) 40 Recoil Reduction 2 Item Schematics ----------------- None Robot Schematics ------------------ None Fabricated ------------ Nothing Repaired ---------- Ion Engine | 36% | -10/Materials Studied --------- None Alien Tech Used ----------------- None Achievements -------------- None Challenges ------------ None Game ------ Seed DefenseActiveRailgun Manual? 0 Play Time 00:16:13 Cumulative 20.5 hours Start 2025.12.24 @ 07:26:48 End 2025.12.24 @ 07:41:14 Sessions 1 Manual Loads 0 Difficulty Rogue Special Mode None Game No. 54 Rogue 54 Adventurer 0 Explorer 0 Win Type - Total 0 Types 0/0/0/0/0/0/0/0/0/0 Lore% 17 Gallery% 24 Achievement% 18 Wizard Run 0 Options --------- Layout 1 ASCII 0 Keyboard 0 Movement Numpad Keybinds 0 Fullscreen 1 Font 24/Smallcaps Map View 50x35 Zoom Use 0% Tactical HUD 1 Map Filters NONE Filters NONE Steam 1 RUN: d6338df4-162c-49b4-b59b-703ebb0e389c